{"text_format":"3","workbook":"xlsx","n_sheets":6,"sheets":["Έναρξη","Πίνακας εργαλείων","Έξοδα και έσοδα","Έκθεση προϋπολογισμού","Λίστες δεδομένων","Συγκεντρωτικός πίνακας κατηγ."],"not_rendered":{"charts":3,"defined_names":23,"pivot_tables":2},"read":"whole","date_system":"1900"}

{"sheet":"Έναρξη","index":0,"n_rows":8,"n_cols":2,"rows_kept":8}
[null,"Σχετικά με για το πρότυπο"]
[null,"Χρησιμοποιήστε αυτό το πρότυπο για να δημιουργήσετε έναν οικογενειακό προϋπολογισμό δεκαπενθημέρου."]
[null,"Το φύλλο εργασίας του πίνακα εργαλείων περιέχει γραφήματα για τα μηνιαία και ετήσια σύνολα και έναν πίνακα για έσοδα και έξοδα δεκαπενθημέρου."]
[null,"Εισαγάγετε κατηγορίες στο φύλλο εργασίας \"Λίστες δεδομένων\" και τιμές στο φύλλο εργασίας \"Έσοδα και δαπάνες\"."]
[null,"Ανανεώστε τον Συγκεντρωτικό Πίνακα στο φύλλο εργασίας \"Αναφορά προϋπολογισμού\"."]
[null,"Σημείωση:"]
[null,"Στη στήλη A όλων των φύλλων εργασίας παρέχονται πρόσθετες οδηγίες. Αυτό το κείμενο είναι κρυφό σκόπιμα. Για να καταργήσετε κείμενο, επιλέξτε τη στήλη A και, στη συνέχεια, πατήστε DELETE. "]
[null,"Για να μάθετε περισσότερα για τους πίνακες, πατήστε SHIFT και, στη συνέχεια, το F10 μέσα σε έναν πίνακα, επιλέξτε ΠΙΝΑΚΑΣ και, στη συνέχεια, επιλέξτε ΕΝΑΛΛΑΚΤΙΚΟ ΚΕΙΜΕΝΟ. Για τους Συγκεντρωτικούς Πίνακες, πατήστε SHIFT και, στη συνέχεια, το F10 μέσα σε έναν πίνακα, επιλέξτε ΕΠΙΛΟΓΕΣ ΣΥΓΚΕΝΤΡΩΤΙΚΟΥ ΠΙΝΑΚΑ και, στη συνέχεια, την καρτέλα ΕΝΑΛΛΑΚΤΙΚΟ ΚΕΙΜΕΝΟ."]

{"sheet":"Πίνακας εργαλείων","index":1,"n_rows":12,"n_cols":15,"rows_kept":12,"merged":[[0,1,0,13],[1,2,1,7]]}
["Δημιουργήστε έναν πίνακα εργαλείων για μηνιαία και ετήσια σύνολα και για έσοδα και έξοδα δεκαπενθημέρου σε αυτό το φύλλο εργασίας. Σε διάφορα κελιά σε αυτήν τη στήλη, βρίσκονται χρήσιμες οδηγίες για τον τρόπο χρήσης αυτού του φύλλου εργασίας. Ο τίτλος αυτού του βιβλίου εργασίας βρίσκεται στο κελί στα δεξιά και ο τίτλος του φύλλου εργασίας στο κελί O1.","Δεκαπενθήμερος οικιακός προϋπολογισμός",{"$nulls":12},"ΠΙΝΑΚΑΣ ΕΡΓΑΛΕΙΩΝ"]
["Επιλέξτε το ρυθμιστικό στο κελί C2 για να αλλάξετε τον μήνα στο κελί στα δεξιά και να αλλάξετε το έτος στο κελί I2, επιλέξτε το ρυθμιστικό στο κελί J2.",{"$f":"CHOOSE(Αριθμός_μήνα,\"Ιανουαρίου\",\"Φεβρουαρίου\",\"αρτίου\",\"Απριλίου\",\"Μαΐου\",\"Ιουνίου\",\"Ιουλίου\",\"Αυγούστου\",\"Σεπτεμβρίου\",\"Οκτωβρίου\",\"Νοεμβρίου\",\"Δεκεμβρίου\")","v":"Δεκεμβρίου"},12,{"$nulls":5},{"$f":"YEAR(TODAY())","v":2022}]
["Η ετικέτα \"Μηνιαία σύνολα\" βρίσκεται στο κελί στα δεξιά και η ετικέτα \"Ετήσια σύνολα\" στο κελί I3.","ΜΗΝΙΑΙΑ ΣΥΝΟΛΑ",{"$nulls":6},"ΕΤΗΣΙΟ ΣΥΝΟΛΑ"]
["Γράφημα ράβδων που συγκρίνει τα σύνολα \"Μηνιαία έσοδα\" με τα σύνολα \"Μηνιαίες δαπάνες\" στο κελί C4 και το γράφημα ράβδων που συγκρίνει τα σύνολα \"Ετήσια έσοδα\" με τα σύνολα \"Ετήσια έξοδα\" βρίσκεται στο κελί J4. Η επόμενη οδηγία βρίσκεται στο κελί A8.","ΕΣΟΔΑ",null,{"$f":"Σύνολο_μηνιαίων_δαπανών","v":{"v":0,"d":"0 €"}},{"$nulls":4},"ΕΣΟΔΑ",null,null,{"$f":"Σύνολο_ετήσιων_δαπανών","v":{"v":10742,"d":"10,742 €"}}]
[null,"ΔΑΠΑΝΕΣ",null,{"$f":"Συνολο_μηνιαίων_εσόδων","v":{"v":0,"d":"0 €"}},{"$nulls":4},"ΔΑΠΑΝΕΣ",null,null,{"$f":"Σύνολο_ετήσιων_εσόδων","v":{"v":13200,"d":"13,200 €"}}]
[]
[]
["Ο πίνακας εργαλείων του πίνακα που ξεκινάει στο κελί στα δεξιά ενημερώνεται αυτόματα.","Κατηγορία","Ιανουαρίου","Φεβρουαρίου","Μαρτίου","Απριλίου","Μαΐου","Ιουνίου","Ιουλίου","Αυγούστου","Σεπτεμβρίου","Οκτωβρίου","Νοεμβρίου","Δεκεμβρίου","Γραφήματα sparkline"]
[null,"Έσοδα 1-15",{"$f":"SUMIFS(Έσοδα[ΠΟΣΟ],Έσοδα[ΗΜΕΡΟΜΗΝΙΑ],\"<=\"&Μέσο_ημ_νίας,Έσοδα[ΗΜΕΡΟΜΗΝΙΑ],\">=\"&Αρχή_ημ_νίας)","v":{"v":0,"d":"0.00 €"}},{"$f":"SUMIFS(Έσοδα[ΠΟΣΟ],Έσοδα[ΗΜΕΡΟΜΗΝΙΑ],\"<=\"&Μέσο_ημ_νίας,Έσοδα[ΗΜΕΡΟΜΗΝΙΑ],\">=\"&Αρχή_ημ_νίας)","v":{"v":0,"d":"0.00 €"}},{"$f":"SUMIFS(Έσοδα[ΠΟΣΟ],Έσοδα[ΗΜΕΡΟΜΗΝΙΑ],\"<=\"&Μέσο_ημ_νίας,Έσοδα[ΗΜΕΡΟΜΗΝΙΑ],\">=\"&Αρχή_ημ_νίας)","v":{"v":1300,"d":"1,300.00 €"}},{"$f":"SUMIFS(Έσοδα[ΠΟΣΟ],Έσοδα[ΗΜΕΡΟΜΗΝΙΑ],\"<=\"&Μέσο_ημ_νίας,Έσοδα[ΗΜΕΡΟΜΗΝΙΑ],\">=\"&Αρχή_ημ_νίας)","v":{"v":2600,"d":"2,600.00 €"}},{"$f":"SUMIFS(Έσοδα[ΠΟΣΟ],Έσοδα[ΗΜΕΡΟΜΗΝΙΑ],\"<=\"&Μέσο_ημ_νίας,Έσοδα[ΗΜΕΡΟΜΗΝΙΑ],\">=\"&Αρχή_ημ_νίας)","v":{"v":2600,"d":"2,600.00 €"}},{"$f":"SUMIFS(Έσοδα[ΠΟΣΟ],Έσοδα[ΗΜΕΡΟΜΗΝΙΑ],\"<=\"&Μέσο_ημ_νίας,Έσοδα[ΗΜΕΡΟΜΗΝΙΑ],\">=\"&Αρχή_ημ_νίας)","v":{"v":0,"d":"0.00 €"}},{"$f":"SUMIFS(Έσοδα[ΠΟΣΟ],Έσοδα[ΗΜΕΡΟΜΗΝΙΑ],\"<=\"&Μέσο_ημ_νίας,Έσοδα[ΗΜΕΡΟΜΗΝΙΑ],\">=\"&Αρχή_ημ_νίας)","v":{"v":0,"d":"0.00 €"}},{"$f":"SUMIFS(Έσοδα[ΠΟΣΟ],Έσοδα[ΗΜΕΡΟΜΗΝΙΑ],\"<=\"&Μέσο_ημ_νίας,Έσοδα[ΗΜΕΡΟΜΗΝΙΑ],\">=\"&Αρχή_ημ_νίας)","v":{"v":0,"d":"0.00 €"}},{"$f":"SUMIFS(Έσοδα[ΠΟΣΟ],Έσοδα[ΗΜΕΡΟΜΗΝΙΑ],\"<=\"&Μέσο_ημ_νίας,Έσοδα[ΗΜΕΡΟΜΗΝΙΑ],\">=\"&Αρχή_ημ_νίας)","v":{"v":0,"d":"0.00 €"}},{"$f":"SUMIFS(Έσοδα[ΠΟΣΟ],Έσοδα[ΗΜΕΡΟΜΗΝΙΑ],\"<=\"&Μέσο_ημ_νίας,Έσοδα[ΗΜΕΡΟΜΗΝΙΑ],\">=\"&Αρχή_ημ_νίας)","v":{"v":0,"d":"0.00 €"}},{"$f":"SUMIFS(Έσοδα[ΠΟΣΟ],Έσοδα[ΗΜΕΡΟΜΗΝΙΑ],\"<=\"&Μέσο_ημ_νίας,Έσοδα[ΗΜΕΡΟΜΗΝΙΑ],\">=\"&Αρχή_ημ_νίας)","v":{"v":0,"d":"0.00 €"}},{"$f":"SUMIFS(Έσοδα[ΠΟΣΟ],Έσοδα[ΗΜΕΡΟΜΗΝΙΑ],\"<=\"&Μέσο_ημ_νίας,Έσοδα[ΗΜΕΡΟΜΗΝΙΑ],\">=\"&Αρχή_ημ_νίας)","v":{"v":0,"d":"0.00 €"}}]
[null,"Έσοδα 16-ΤΤΜ",{"$f":"SUMIFS(Έσοδα[ΠΟΣΟ],Έσοδα[ΗΜΕΡΟΜΗΝΙΑ],\"<=\"&Τέλος_ημ_νίας,Έσοδα[ΗΜΕΡΟΜΗΝΙΑ],\">=\"&Μέσο_ημ_νίας+1)","v":{"v":0,"d":"0.00 €"}},{"$f":"SUMIFS(Έσοδα[ΠΟΣΟ],Έσοδα[ΗΜΕΡΟΜΗΝΙΑ],\"<=\"&Τέλος_ημ_νίας,Έσοδα[ΗΜΕΡΟΜΗΝΙΑ],\">=\"&Μέσο_ημ_νίας+1)","v":{"v":0,"d":"0.00 €"}},{"$f":"SUMIFS(Έσοδα[ΠΟΣΟ],Έσοδα[ΗΜΕΡΟΜΗΝΙΑ],\"<=\"&Τέλος_ημ_νίας,Έσοδα[ΗΜΕΡΟΜΗΝΙΑ],\">=\"&Μέσο_ημ_νίας+1)","v":{"v":3100,"d":"3,100.00 €"}},{"$f":"SUMIFS(Έσοδα[ΠΟΣΟ],Έσοδα[ΗΜΕΡΟΜΗΝΙΑ],\"<=\"&Τέλος_ημ_νίας,Έσοδα[ΗΜΕΡΟΜΗΝΙΑ],\">=\"&Μέσο_ημ_νίας+1)","v":{"v":3100,"d":"3,100.00 €"}},{"$f":"SUMIFS(Έσοδα[ΠΟΣΟ],Έσοδα[ΗΜΕΡΟΜΗΝΙΑ],\"<=\"&Τέλος_ημ_νίας,Έσοδα[ΗΜΕΡΟΜΗΝΙΑ],\">=\"&Μέσο_ημ_νίας+1)","v":{"v":500,"d":"500.00 €"}},{"$f":"SUMIFS(Έσοδα[ΠΟΣΟ],Έσοδα[ΗΜΕΡΟΜΗΝΙΑ],\"<=\"&Τέλος_ημ_νίας,Έσοδα[ΗΜΕΡΟΜΗΝΙΑ],\">=\"&Μέσο_ημ_νίας+1)","v":{"v":0,"d":"0.00 €"}},{"$f":"SUMIFS(Έσοδα[ΠΟΣΟ],Έσοδα[ΗΜΕΡΟΜΗΝΙΑ],\"<=\"&Τέλος_ημ_νίας,Έσοδα[ΗΜΕΡΟΜΗΝΙΑ],\">=\"&Μέσο_ημ_νίας+1)","v":{"v":0,"d":"0.00 €"}},{"$f":"SUMIFS(Έσοδα[ΠΟΣΟ],Έσοδα[ΗΜΕΡΟΜΗΝΙΑ],\"<=\"&Τέλος_ημ_νίας,Έσοδα[ΗΜΕΡΟΜΗΝΙΑ],\">=\"&Μέσο_ημ_νίας+1)","v":{"v":0,"d":"0.00 €"}},{"$f":"SUMIFS(Έσοδα[ΠΟΣΟ],Έσοδα[ΗΜΕΡΟΜΗΝΙΑ],\"<=\"&Τέλος_ημ_νίας,Έσοδα[ΗΜΕΡΟΜΗΝΙΑ],\">=\"&Μέσο_ημ_νίας+1)","v":{"v":0,"d":"0.00 €"}},{"$f":"SUMIFS(Έσοδα[ΠΟΣΟ],Έσοδα[ΗΜΕΡΟΜΗΝΙΑ],\"<=\"&Τέλος_ημ_νίας,Έσοδα[ΗΜΕΡΟΜΗΝΙΑ],\">=\"&Μέσο_ημ_νίας+1)","v":{"v":0,"d":"0.00 €"}},{"$f":"SUMIFS(Έσοδα[ΠΟΣΟ],Έσοδα[ΗΜΕΡΟΜΗΝΙΑ],\"<=\"&Τέλος_ημ_νίας,Έσοδα[ΗΜΕΡΟΜΗΝΙΑ],\">=\"&Μέσο_ημ_νίας+1)","v":{"v":0,"d":"0.00 €"}},{"$f":"SUMIFS(Έσοδα[ΠΟΣΟ],Έσοδα[ΗΜΕΡΟΜΗΝΙΑ],\"<=\"&Τέλος_ημ_νίας,Έσοδα[ΗΜΕΡΟΜΗΝΙΑ],\">=\"&Μέσο_ημ_νίας+1)","v":{"v":0,"d":"0.00 €"}}]
[null,"Δαπάνες 1-15",{"$f":"SUMIFS(Δαπάνες[ΠΟΣΟ],Δαπάνες[ΗΜΕΡΟΜΗΝΙΑ],\"<=\"&Μέσο_ημ_νίας+1,Δαπάνες[ΗΜΕΡΟΜΗΝΙΑ],\">=\"&Αρχή_ημ_νίας)","v":{"v":0,"d":"0.00 €"}},{"$f":"SUMIFS(Δαπάνες[ΠΟΣΟ],Δαπάνες[ΗΜΕΡΟΜΗΝΙΑ],\"<=\"&Μέσο_ημ_νίας+1,Δαπάνες[ΗΜΕΡΟΜΗΝΙΑ],\">=\"&Αρχή_ημ_νίας)","v":{"v":0,"d":"0.00 €"}},{"$f":"SUMIFS(Δαπάνες[ΠΟΣΟ],Δαπάνες[ΗΜΕΡΟΜΗΝΙΑ],\"<=\"&Μέσο_ημ_νίας+1,Δαπάνες[ΗΜΕΡΟΜΗΝΙΑ],\">=\"&Αρχή_ημ_νίας)","v":{"v":1150,"d":"1,150.00 €"}},{"$f":"SUMIFS(Δαπάνες[ΠΟΣΟ],Δαπάνες[ΗΜΕΡΟΜΗΝΙΑ],\"<=\"&Μέσο_ημ_νίας+1,Δαπάνες[ΗΜΕΡΟΜΗΝΙΑ],\">=\"&Αρχή_ημ_νίας)","v":{"v":5175,"d":"5,175.00 €"}},{"$f":"SUMIFS(Δαπάνες[ΠΟΣΟ],Δαπάνες[ΗΜΕΡΟΜΗΝΙΑ],\"<=\"&Μέσο_ημ_νίας+1,Δαπάνες[ΗΜΕΡΟΜΗΝΙΑ],\">=\"&Αρχή_ημ_νίας)","v":{"v":2792,"d":"2,792.00 €"}},{"$f":"SUMIFS(Δαπάνες[ΠΟΣΟ],Δαπάνες[ΗΜΕΡΟΜΗΝΙΑ],\"<=\"&Μέσο_ημ_νίας+1,Δαπάνες[ΗΜΕΡΟΜΗΝΙΑ],\">=\"&Αρχή_ημ_νίας)","v":{"v":0,"d":"0.00 €"}},{"$f":"SUMIFS(Δαπάνες[ΠΟΣΟ],Δαπάνες[ΗΜΕΡΟΜΗΝΙΑ],\"<=\"&Μέσο_ημ_νίας+1,Δαπάνες[ΗΜΕΡΟΜΗΝΙΑ],\">=\"&Αρχή_ημ_νίας)","v":{"v":0,"d":"0.00 €"}},{"$f":"SUMIFS(Δαπάνες[ΠΟΣΟ],Δαπάνες[ΗΜΕΡΟΜΗΝΙΑ],\"<=\"&Μέσο_ημ_νίας+1,Δαπάνες[ΗΜΕΡΟΜΗΝΙΑ],\">=\"&Αρχή_ημ_νίας)","v":{"v":0,"d":"0.00 €"}},{"$f":"SUMIFS(Δαπάνες[ΠΟΣΟ],Δαπάνες[ΗΜΕΡΟΜΗΝΙΑ],\"<=\"&Μέσο_ημ_νίας+1,Δαπάνες[ΗΜΕΡΟΜΗΝΙΑ],\">=\"&Αρχή_ημ_νίας)","v":{"v":0,"d":"0.00 €"}},{"$f":"SUMIFS(Δαπάνες[ΠΟΣΟ],Δαπάνες[ΗΜΕΡΟΜΗΝΙΑ],\"<=\"&Μέσο_ημ_νίας+1,Δαπάνες[ΗΜΕΡΟΜΗΝΙΑ],\">=\"&Αρχή_ημ_νίας)","v":{"v":0,"d":"0.00 €"}},{"$f":"SUMIFS(Δαπάνες[ΠΟΣΟ],Δαπάνες[ΗΜΕΡΟΜΗΝΙΑ],\"<=\"&Μέσο_ημ_νίας+1,Δαπάνες[ΗΜΕΡΟΜΗΝΙΑ],\">=\"&Αρχή_ημ_νίας)","v":{"v":0,"d":"0.00 €"}},{"$f":"SUMIFS(Δαπάνες[ΠΟΣΟ],Δαπάνες[ΗΜΕΡΟΜΗΝΙΑ],\"<=\"&Μέσο_ημ_νίας+1,Δαπάνες[ΗΜΕΡΟΜΗΝΙΑ],\">=\"&Αρχή_ημ_νίας)","v":{"v":0,"d":"0.00 €"}}]
[null,"Έξοδα 16-ΤΤΜ",{"$f":"SUMIFS(Δαπάνες[ΠΟΣΟ],Δαπάνες[ΗΜΕΡΟΜΗΝΙΑ],\"<=\"&Τέλος_ημ_νίας,Δαπάνες[ΗΜΕΡΟΜΗΝΙΑ],\">=\"&Μέσο_ημ_νίας+1)","v":{"v":0,"d":"0.00 €"}},{"$f":"SUMIFS(Δαπάνες[ΠΟΣΟ],Δαπάνες[ΗΜΕΡΟΜΗΝΙΑ],\"<=\"&Τέλος_ημ_νίας,Δαπάνες[ΗΜΕΡΟΜΗΝΙΑ],\">=\"&Μέσο_ημ_νίας+1)","v":{"v":75,"d":"75.00 €"}},{"$f":"SUMIFS(Δαπάνες[ΠΟΣΟ],Δαπάνες[ΗΜΕΡΟΜΗΝΙΑ],\"<=\"&Τέλος_ημ_νίας,Δαπάνες[ΗΜΕΡΟΜΗΝΙΑ],\">=\"&Μέσο_ημ_νίας+1)","v":{"v":200,"d":"200.00 €"}},{"$f":"SUMIFS(Δαπάνες[ΠΟΣΟ],Δαπάνες[ΗΜΕΡΟΜΗΝΙΑ],\"<=\"&Τέλος_ημ_νίας,Δαπάνες[ΗΜΕΡΟΜΗΝΙΑ],\">=\"&Μέσο_ημ_νίας+1)","v":{"v":875,"d":"875.00 €"}},{"$f":"SUMIFS(Δαπάνες[ΠΟΣΟ],Δαπάνες[ΗΜΕΡΟΜΗΝΙΑ],\"<=\"&Τέλος_ημ_νίας,Δαπάνες[ΗΜΕΡΟΜΗΝΙΑ],\">=\"&Μέσο_ημ_νίας+1)","v":{"v":500,"d":"500.00 €"}},{"$f":"SUMIFS(Δαπάνες[ΠΟΣΟ],Δαπάνες[ΗΜΕΡΟΜΗΝΙΑ],\"<=\"&Τέλος_ημ_νίας,Δαπάνες[ΗΜΕΡΟΜΗΝΙΑ],\">=\"&Μέσο_ημ_νίας+1)","v":{"v":0,"d":"0.00 €"}},{"$f":"SUMIFS(Δαπάνες[ΠΟΣΟ],Δαπάνες[ΗΜΕΡΟΜΗΝΙΑ],\"<=\"&Τέλος_ημ_νίας,Δαπάνες[ΗΜΕΡΟΜΗΝΙΑ],\">=\"&Μέσο_ημ_νίας+1)","v":{"v":0,"d":"0.00 €"}},{"$f":"SUMIFS(Δαπάνες[ΠΟΣΟ],Δαπάνες[ΗΜΕΡΟΜΗΝΙΑ],\"<=\"&Τέλος_ημ_νίας,Δαπάνες[ΗΜΕΡΟΜΗΝΙΑ],\">=\"&Μέσο_ημ_νίας+1)","v":{"v":0,"d":"0.00 €"}},{"$f":"SUMIFS(Δαπάνες[ΠΟΣΟ],Δαπάνες[ΗΜΕΡΟΜΗΝΙΑ],\"<=\"&Τέλος_ημ_νίας,Δαπάνες[ΗΜΕΡΟΜΗΝΙΑ],\">=\"&Μέσο_ημ_νίας+1)","v":{"v":0,"d":"0.00 €"}},{"$f":"SUMIFS(Δαπάνες[ΠΟΣΟ],Δαπάνες[ΗΜΕΡΟΜΗΝΙΑ],\"<=\"&Τέλος_ημ_νίας,Δαπάνες[ΗΜΕΡΟΜΗΝΙΑ],\">=\"&Μέσο_ημ_νίας+1)","v":{"v":0,"d":"0.00 €"}},{"$f":"SUMIFS(Δαπάνες[ΠΟΣΟ],Δαπάνες[ΗΜΕΡΟΜΗΝΙΑ],\"<=\"&Τέλος_ημ_νίας,Δαπάνες[ΗΜΕΡΟΜΗΝΙΑ],\">=\"&Μέσο_ημ_νίας+1)","v":{"v":0,"d":"0.00 €"}},{"$f":"SUMIFS(Δαπάνες[ΠΟΣΟ],Δαπάνες[ΗΜΕΡΟΜΗΝΙΑ],\"<=\"&Τέλος_ημ_νίας,Δαπάνες[ΗΜΕΡΟΜΗΝΙΑ],\">=\"&Μέσο_ημ_νίας+1)","v":{"v":0,"d":"0.00 €"}}]

{"sheet":"Έξοδα και έσοδα","index":2,"n_rows":36,"n_cols":9,"rows_kept":36,"merged":[[0,1,0,6],[0,7,0,8]]}
["Δημιουργήστε μια λίστα εσόδων και δαπανών σε αυτό το φύλλο εργασίας. Σε διάφορα κελιά σε αυτήν τη στήλη, βρίσκονται χρήσιμες οδηγίες για τον τρόπο χρήσης αυτού του φύλλου εργασίας. Ο τίτλος του βιβλίου εργασίας βρίσκεται στο κελί στα δεξιά και ο τίτλος του φύλλου εργασίας στο κελί H1.",{"$f":"Semi_Monthly_Home_Budget_Title","v":"Δεκαπενθήμερος οικιακός προϋπολογισμός"},{"$nulls":5},"ΕΣΟΔΑ ΚΑΙ ΔΑΠΑΝΕΣ"]
["Η ετικέτα \"Εισόδημα\" βρίσκεται στο κελί στα δεξιά και η ετικέτα \"Δαπάνες\" στο κελί F2.","ΕΣΟΔΑ",{"$nulls":3},"ΔΑΠΑΝΕΣ"]
["Εισαγάγετε λεπτομέρειες στον πίνακα \"Έσοδα\", ξεκινώντας από το κελί στα δεξιά και στον πίνακα \"Δαπάνες\", ξεκινώντας από το κελί F3.","ΗΜΕΡΟΜΗΝΙΑ","ΠΕΡΙΓΡΑΦΗ","ΠΟΣΟ",null,"ΗΜΕΡΟΜΗΝΙΑ","ΚΑΤΗΓΟΡΙΑ","ΠΕΡΙΓΡΑΦΗ","ΠΟΣΟ"]
[null,{"$f":"TODAY()","v":"2022-05-17"},"Μπόνους",{"v":500,"d":"500.00 €"},null,{"$f":"TODAY()","v":"2022-05-17"},"Ιατρικά","Ασφάλεια",{"v":500,"d":"500.00 €"}]
[null,{"$f":"TODAY()-14","v":"2022-05-03"},"Μισθός του Ντέιβιντ",{"v":1300,"d":"1,300.00 €"},null,{"$f":"TODAY()-7","v":"2022-05-10"},"Νοικοκυριό","Ενυπόθηκο δάνειο",{"v":1000,"d":"1,000.00 €"}]
[null,{"$f":"TODAY()-14","v":"2022-05-03"},"Μισθός της Μαρίας",{"v":1300,"d":"1,300.00 €"},null,"2022-05-10","Νοικοκυριό","Ηλεκτρικό",{"v":100,"d":"100.00 €"}]
[null,{"$f":"TODAY()-28","v":"2022-04-19"},"Μισθός του Ντέιβιντ",{"v":1500,"d":"1,500.00 €"},null,"2022-05-10","Νοικοκυριό","Ύδρευση/αποχέτευση",{"v":50,"d":"50.00 €"}]
[null,{"$f":"TODAY()-28","v":"2022-04-19"},"Μισθός της Μαρίας",{"v":1600,"d":"1,600.00 €"},null,"2022-05-10","Νοικοκυριό","Απορρίμματα",{"v":25,"d":"25.00 €"}]
[null,{"$f":"TODAY()-42","v":"2022-04-05"},"Μισθός του Ντέιβιντ",{"v":1300,"d":"1,300.00 €"},null,"2022-05-10","Νοικοκυριό","Κινητό",{"v":100,"d":"100.00 €"}]
[null,{"$f":"TODAY()-42","v":"2022-04-05"},"Μισθός της Μαρίας",{"v":1300,"d":"1,300.00 €"},null,"2022-05-10","Νοικοκυριό","Κινητό",{"v":30,"d":"30.00 €"}]
[null,{"$f":"TODAY()-56","v":"2022-03-22"},"Μισθός του Ντέιβιντ",{"v":1500,"d":"1,500.00 €"},null,"2022-05-10","Νοικοκυριό","Ενυπόθηκο δάνειο",{"v":50,"d":"50.00 €"}]
[null,{"$f":"TODAY()-56","v":"2022-03-22"},"Μισθός της Μαρίας",{"v":1600,"d":"1,600.00 €"},null,"2022-05-10","Νοικοκυριό","Κινητό",{"v":50,"d":"50.00 €"}]
[null,{"$f":"TODAY()-70","v":"2022-03-08"},"Μισθός του Ντέιβιντ",{"v":1300,"d":"1,300.00 €"},null,{"$f":"TODAY()-7","v":"2022-05-10"},"Νοικοκυριό","Κινητό",{"v":25,"d":"25.00 €"}]
[{"$nulls":5},{"$f":"TODAY()-8","v":"2022-05-09"},"Νοικοκυριό","Ηλεκτρικό",{"v":100,"d":"100.00 €"}]
[{"$nulls":5},{"$f":"TODAY()-9","v":"2022-05-08"},"Διασκέδαση","Ταινίες",{"v":37,"d":"37.00 €"}]
[{"$nulls":5},{"$f":"TODAY()-10","v":"2022-05-07"},"Τρόφιμα","Ψώνια",{"v":350,"d":"350.00 €"}]
[{"$nulls":5},{"$f":"TODAY()-11","v":"2022-05-06"},"Τρόφιμα","Εστιατόρια",{"v":75,"d":"75.00 €"}]
[{"$nulls":5},{"$f":"TODAY()-12","v":"2022-05-05"},"Παιδιά","Χρήματα για κολατσιό",{"v":150,"d":"150.00 €"}]
[{"$nulls":5},{"$f":"TODAY()-13","v":"2022-05-04"},"Επενδυτικοί λογαριασμοί","Αποταμιεύσεις",{"v":250,"d":"250.00 €"}]
[{"$nulls":5},{"$f":"TODAY()-14","v":"2022-05-03"},"Επενδυτικοί λογαριασμοί","Επενδυτικός λογαριασμός",{"v":250,"d":"250.00 €"}]
[{"$nulls":5},{"$f":"TODAY()-15","v":"2022-05-02"},"Προσωπικά","Κλαμπ υγείας / φυσικής κατάστασης",{"v":100,"d":"100.00 €"}]
[{"$nulls":5},{"$f":"TODAY()-16","v":"2022-05-01"},"Κατοικίδια","Τρόφιμα",{"v":50,"d":"50.00 €"}]
[{"$nulls":5},{"$f":"TODAY()-20","v":"2022-04-27"},"Κατοικίδια","Περιποίηση",{"v":50,"d":"50.00 €"}]
[{"$nulls":5},{"$f":"TODAY()-20","v":"2022-04-27"},"Κατοικίδια","Άλλο",{"v":50,"d":"50.00 €"}]
[{"$nulls":5},{"$f":"TODAY()-25","v":"2022-04-22"},"Μεταφορικά","Πληρωμές για αυτοκίνητο 1 ",{"v":300,"d":"300.00 €"}]
[{"$nulls":5},{"$f":"TODAY()-25","v":"2022-04-22"},"Μεταφορικά","Πληρωμές για αυτοκίνητο 2 ",{"v":350,"d":"350.00 €"}]
[{"$nulls":5},{"$f":"TODAY()-25","v":"2022-04-22"},"Μεταφορικά","Ασφάλεια αυτοκινήτου",{"v":50,"d":"50.00 €"}]
[{"$nulls":5},{"$f":"TODAY()-30","v":"2022-04-17"},"Μεταφορικά","Καύσιμα",{"v":50,"d":"50.00 €"}]
[{"$nulls":5},{"$f":"TODAY()-31","v":"2022-04-16"},"Μεταφορικά","Καύσιμα",{"v":25,"d":"25.00 €"}]
[{"$nulls":5},{"$f":"TODAY()-42","v":"2022-04-05"},"Μεταφορικά","Πληρωμές για αυτοκίνητο 2 ",{"v":150,"d":"150.00 €"}]
[{"$nulls":5},{"$f":"TODAY()-45","v":"2022-04-02"},"Νοικοκυριό","Ενυπόθηκο δάνειο",{"v":5000,"d":"5,000.00 €"}]
[{"$nulls":5},{"$f":"TODAY()-50","v":"2022-03-28"},"Νοικοκυριό","Ηλεκτρικό",{"v":200,"d":"200.00 €"}]
[{"$nulls":5},{"$f":"TODAY()-65","v":"2022-03-13"},"Νοικοκυριό","Κινητό",{"v":100,"d":"100.00 €"}]
[{"$nulls":5},{"$f":"TODAY()-70","v":"2022-03-08"},"Νοικοκυριό","Απορρίμματα",{"v":50,"d":"50.00 €"}]
[{"$nulls":5},{"$f":"TODAY()-75","v":"2022-03-03"},"Νοικοκυριό","Ενυπόθηκο δάνειο",{"v":1000,"d":"1,000.00 €"}]
[{"$nulls":5},{"$f":"TODAY()-78","v":"2022-02-28"},"Διασκέδαση","Ταινίες",{"v":75,"d":"75.00 €"}]

{"sheet":"Έκθεση προϋπολογισμού","index":3,"n_rows":26,"n_cols":6,"rows_kept":26,"merged":[[0,1,0,4],[1,1,1,3],[4,3,4,5]]}
["Δημιουργήστε μια \"Αναφορά προϋπολογισμού\" σε αυτό το φύλλο εργασίας. Σε διάφορα κελιά σε αυτήν τη στήλη, βρίσκονται χρήσιμες οδηγίες για τον τρόπο χρήσης αυτού του φύλλου εργασίας. Ο τίτλος του βιβλίου εργασίας βρίσκεται στο κελί στα δεξιά και ο τίτλος του φύλλου εργασίας στο κελί F1.",{"$f":"Semi_Monthly_Home_Budget_Title","v":"Δεκαπενθήμερος οικιακός προϋπολογισμός"},{"$nulls":3},"ΕΚΘΕΣΗ ΠΡΟΫΠΟΛΟΓΙΣΜΟΥ"]
["Επιλέξτε έτη, τρίμηνα, μήνες ή ημέρες και χρησιμοποιήστε το ρυθμιστικό στο κελί στα δεξιά για να επιλέξετε τον Συγκεντρωτικό Πίνακα δαπανών για την επιλεγμένη περίοδο. Ο \"Αναλυτής κατηγορίας\" για το φιλτράρισμα δεδομένων Συγκεντρωτικού Πίνακα βρίσκεται στο κελί E2 και ο \"Αναλυτής περιγραφής\" στο κελί F2.","Η λωρίδα χρόνου για φιλτράρισμα βρίσκεται σε αυτό το κελί.",null,null,"Ο αναλυτής για το φιλτράρισμα των δεδομένων Συγκεντρωτικού Πίνακα με βάση την κατηγορία βρίσκεται σε αυτό το κελί.","Ο αναλυτής για να φιλτράρετε δεδομένα Συγκεντρωτικού Πίνακα με βάση την περιγραφή βρίσκεται σε αυτό το κελί."]
["Στο κελί στα δεξιά βρίσκεται συμβουλή.","Πατήστε το συνδυασμό πλήκτρων Shift+F10 στον Συγκεντρωτικό Πίνακα δαπανών και, στη συνέχεια, επιλέξτε Ανανέωση για να ενημερώσετε τα δεδομένα σε αυτό το φύλλο ή επιλέξτε Ανανέωση στην περιοχή Ανάλυση καρτέλας."]
["Η ετικέτα \"Δαπάνες\" βρίσκεται στο κελί στα δεξιά.","ΔΑΠΑΝΕΣ"]
["Ο Συγκεντρωτικός Πίνακας που εμφανίζει δαπάνες ξεκινά στο κελί στα δεξιά. Η ετικέτα \"Σύνολα κατηγοριών\" βρίσκεται στο κελί D4.","Ετικέτες γραμμής","Άθροισμα από ΠΟΣΟ","ΣΥΝΟΛΑ ΚΑΤΗΓΟΡΙΩΝ"]
["Το γράφημα πίτας που συγκρίνει κάθε σύνολο κατηγοριών βρίσκεται στο κελί D6.","Πληρωμές για αυτοκίνητο 1 ",{"v":300,"d":"300.00 €"}]
[null,"Πληρωμές για αυτοκίνητο 2 ",{"v":500,"d":"500.00 €"}]
[null,"Άλλο",{"v":50,"d":"50.00 €"}]
[null,"Απορρίμματα",{"v":75,"d":"75.00 €"}]
[null,"Αποταμιεύσεις",{"v":250,"d":"250.00 €"}]
[null,"Ασφάλεια",{"v":500,"d":"500.00 €"}]
[null,"Ασφάλεια αυτοκινήτου",{"v":50,"d":"50.00 €"}]
[null,"Ενυπόθηκο δάνειο",{"v":7050,"d":"7,050.00 €"}]
[null,"Επενδυτικός λογαριασμός",{"v":250,"d":"250.00 €"}]
[null,"Εστιατόρια",{"v":75,"d":"75.00 €"}]
[null,"Ηλεκτρικό",{"v":400,"d":"400.00 €"}]
[null,"Καύσιμα",{"v":75,"d":"75.00 €"}]
[null,"Κινητό",{"v":305,"d":"305.00 €"}]
[null,"Κλαμπ υγείας / φυσικής κατάστασης",{"v":100,"d":"100.00 €"}]
[null,"Περιποίηση",{"v":50,"d":"50.00 €"}]
[null,"Ταινίες",{"v":112,"d":"112.00 €"}]
[null,"Τρόφιμα",{"v":50,"d":"50.00 €"}]
[null,"Ύδρευση/αποχέτευση",{"v":50,"d":"50.00 €"}]
[null,"Χρήματα για κολατσιό",{"v":150,"d":"150.00 €"}]
[null,"Ψώνια",{"v":350,"d":"350.00 €"}]
[null,"Γενικό Άθροισμα",{"v":10742,"d":"10,742.00 €"}]

{"sheet":"Λίστες δεδομένων","index":4,"n_rows":8,"n_cols":13,"rows_kept":8,"merged":[[0,1,0,11]]}
["Εισαγάγετε δεδομένα κατηγορίας σε αυτό το φύλλο εργασίας για να συμπληρώσετε τις αναπτυσσόμενες λίστες στον πίνακα \"Δαπάνες\" στο φύλλο εργασίας \"Δαπάνες και εισόδημα\". Τροποποιήστε ονόματα κατηγοριών ή περιγραφές κάτω από κάθε κατηγορία για να ενημερώσετε τις λίστες. Σε διάφορα κελιά σε αυτήν τη στήλη, βρίσκονται χρήσιμες οδηγίες για τον τρόπο χρήσης αυτού του φύλλου εργασίας. Ο τίτλος του βιβλίου εργασίας βρίσκεται στο κελί στα δεξιά και ο τίτλος του φύλλου εργασίας στο κελί M1.",{"$f":"Semi_Monthly_Home_Budget_Title","v":"Δεκαπενθήμερος οικιακός προϋπολογισμός"},{"$nulls":10},"ΛΙΣΤΕΣ ΔΕΔΟΜΕΝΩΝ"]
["Στο κελί στα δεξιά βρίσκεται συμβουλή.","ΕΓΚΑΤΑΣΤΑΣΗ         Τα δεδομένα κατηγορίας παρακάτω συμπληρώνουν τις αναπτυσσόμενες λίστες στον πίνακα \"Δαπάνες\" του φύλλου \"Δαπάνες και εισόδημα\". Τροποποιήστε τα ονόματα κατηγοριών ή τις περιγραφές κάτω από κάθε κατηγορία για να ενημερώσετε τις λίστες."]
["Εισαγάγετε ή τροποποιήστε ονόματα κατηγοριών ή περιγραφές κάτω από κάθε κατηγορία στον πίνακα, ξεκινώντας από το κελί στα δεξιά.","Νοικοκυριό","Διασκέδαση","Τρόφιμα","Δώρα/Δωρεές","Παιδιά","Επενδυτικοί λογαριασμοί","Ιατρικά","Άλλο","Προσωπικά","Κατοικίδια","Φόροι/νομικά","Μεταφορικά"]
[null,"Ενυπόθηκο δάνειο","Ταινίες","Ψώνια","Κοινωνική προσφορά 1","Ρούχα","IRA","Γιατροί/Νοσοκομεία","Άλλο","Ρουχισμός","Τρόφιμα","Ομοσπονδιακά","Πληρωμές για αυτοκίνητο 1 "]
[null,"Ηλεκτρικό","Βίντεο/ταινίες","Εστιατόρια","Φιλανθρωπική οργάνωση 2","Παιδικά παιχνίδια / παιχνίδια","Αποταμιεύσεις","Ασφάλεια","Προθεσμίες οργάνωσης","Μαλλιά/νύχια","Προμήθειες","Περιφερειακοί","Πληρωμές για αυτοκίνητο 2 "]
[null,"Ύδρευση/Αποχέτευση","Μουσική",null,"Κοινωνική προσφορά 3","Χρήματα για κολατσιό","Όψεως",null,null,"Στεγνοκαθαριστήριο","Ιατρικά","Δημοτικοί","Ασφάλεια αυτοκινήτου"]
[null,"Απορρίμματα","Συναυλίες/Θέατρο",null,"Δώρο","Προθεσμίες/Χρεώσεις","Συνταξιοδότηση",null,null,"Κλαμπ υγείας / φυσικής κατάστασης","Περιποίηση","Άλλο","Άδειες χρήσης / Εγγραφές"]
[null,"Κινητό","Αθλητικές εκδηλώσεις",null,null,"Σχολικές προμήθειες","Επενδυτικός λογαριασμός",null,null,"Ψώνια","Άλλο","Δικηγόρος","Καύσιμα"]

{"sheet":"Συγκεντρωτικός πίνακας κατηγ.","index":5,"n_rows":13,"n_cols":13,"rows_kept":13,"hidden":true}
[null,"Δεκαπενθήμερος οικιακός προϋπολογισμός",{"$nulls":10},"ΣΥΓΚΕΝΤΡΩΤΙΚΕΣ ΚΑΤΗΓΟΡΙΕΣ"]
[null,"Αυτός ο Συγκεντρωτικός Πίνακας είναι η προέλευση δεδομένων για το \"Συγκεντρωτικό Γράφημα συνόλων κατηγορίας\" στην \"Αναφορά προϋπολογισμού\". "]
[null,"Ετικέτες γραμμής","Άθροισμα από ΠΟΣΟ"]
[null,"Διασκέδαση",{"v":112,"d":"112 €"}]
[null,"Επενδυτικοί λογαριασμοί",{"v":500,"d":"500 €"}]
[null,"Ιατρικά",{"v":500,"d":"500 €"}]
[null,"Νοικοκυριό",{"v":7880,"d":"7,880 €"}]
[null,"Κατοικίδια",{"v":150,"d":"150 €"}]
[null,"Μεταφορικά",{"v":925,"d":"925 €"}]
[null,"Παιδιά",{"v":150,"d":"150 €"}]
[null,"Προσωπικά",{"v":100,"d":"100 €"}]
[null,"Τρόφιμα",{"v":425,"d":"425 €"}]
[null,"Γενικό Άθροισμα",{"v":10742,"d":"10,742 €"}]